fUST/lending_fUST_20250203
["ID","MTS","AMOUNT","RATE_DAILY","PERIOD"]
[351435146,1738579849507,-2305.3,0.00017397,2]
[351435147,1738579849517,-500.0,0.00017397,2]
[351435148,1738579849526,-151.0,0.000174,2]
[351435149,1738579849536,-107958.03363416,0.000175,2]
[351435150,1738579849546,-151.0,0.000175,2]
[351435151,1738579849556,-151.0,0.000175,2]
[351435152,1738579849565,-151.0,0.000175,2]
[351435153,1738579849576,-151.0,0.000175,2]
[351435154,1738579849585,-151.0,0.000175,2]
[351435155,1738579849596,-151.0,0.000175,2]
[351435156,1738579849607,-153.499286,0.00017534,2]
[351435157,1738579849616,-151.0,0.00017534,2]
[351435158,1738579849626,-242.622,0.00017534,2]
[351435159,1738579849636,-2261.5,0.00017534,2]
[351435160,1738579849646,-500.0,0.00017534,2]
[351435161,1738579849655,-500.0,0.00017534,2]
[351435162,1738579849664,-518.07,0.00017534,2]
[351435163,1738579849674,-500.0,0.00017534,2]
[351435164,1738579849683,-786.64,0.00017534,2]
[351435165,1738579849693,-642.69,0.00017534,2]
[351435166,1738579849702,-2218.04,0.00017534,2]
[351435167,1738579849711,-500.0,0.00017534,2]
[351435168,1738579849721,-572.09,0.00017534,2]
[351435169,1738579849731,-500.0,0.00017534,2]
[351435170,1738579849740,-500.0,0.00017534,2]
[351435171,1738579849750,-1500.15,0.00017534,2]
[351435172,1738579849759,-737.4,0.00017534,2]
[351435173,1738579849768,-564.73,0.00017534,2]
[351435174,1738579849778,-500.0,0.00017534,2]
[351435175,1738579849787,-500.0,0.00017534,2]
[351435176,1738579849797,-844.0,0.00017534,2]
[351435177,1738579849807,-537.1,0.00017534,2]
[351435178,1738579849817,-938.51,0.00017534,2]
[351435179,1738579849827,-6839.03,0.00017534,2]
[351435180,1738579849837,-2305.3,0.00017534,2]
[351435181,1738579849848,-500.0,0.00017534,2]
[351435182,1738579849861,-150.416,0.00017581,2]
[351435183,1738579849871,-150.0,0.00017581,2]
[351435184,1738579849881,-150.774,0.00017581,2]
[351435185,1738579849891,-261.55,0.00017581,2]
[351435186,1738579849901,-420.0,0.00017616,2]
[351435187,1738579849911,-787.5,0.0001766,2]
[351435188,1738579849920,-2261.5,0.00017671,2]
[351435189,1738579849929,-500.0,0.00017671,2]
[351435190,1738579849939,-500.0,0.00017671,2]
[351435191,1738579849948,-518.07,0.00017671,2]
[351435192,1738579849960,-242.06804144,0.00017671,2]
[351435193,1738579849969,-786.64,0.00017671,2]
[351435194,1738579849979,-2218.04,0.00017671,2]
[351435195,1738579849990,-500.0,0.00017671,2]
[351435196,1738579850000,-572.09,0.00017671,2]
[351435197,1738579850010,-500.0,0.00017671,2]
[351435198,1738579850020,-500.0,0.00017671,2]
[351435199,1738579850030,-1500.15,0.00017671,2]
[351435200,1738579850039,-737.4,0.00017671,2]
[351435201,1738579850049,-500.0,0.00017671,2]
[351435202,1738579850059,-500.0,0.00017671,2]
[351435203,1738579850071,-844.0,0.00017671,2]
[351435204,1738579850082,-537.1,0.00017671,2]
[351435205,1738579850091,-938.51,0.00017671,2]
[351435206,1738579850101,-6839.03,0.00017671,2]
[351435207,1738579850113,-2305.3,0.00017671,2]
[351435208,1738579850122,-500.0,0.00017671,2]
[351435209,1738579850131,-151.0,0.00017689,2]
[351435210,1738579850141,-151.0,0.00017689,2]
[351435211,1738579850151,-869.68270021,0.00017799,2]
[351435212,1738579850161,-983.96628112,0.000178,2]
[351435213,1738579850171,-151.0,0.00017808,2]
[351435214,1738579850181,-2261.5,0.00017808,2]
[351435215,1738579850191,-500.0,0.00017808,2]
[351435216,1738579850201,-500.0,0.00017808,2]
[351435217,1738579850212,-518.07,0.00017808,2]
[351435218,1738579850222,-786.64,0.00017808,2]
[351435219,1738579850233,-2218.04,0.00017808,2]
[351435220,1738579850243,-500.0,0.00017808,2]
[351435221,1738579850253,-572.09,0.00017808,2]
[351435222,1738579850263,-500.0,0.00017808,2]
[351435223,1738579850273,-500.0,0.00017808,2]
[351435224,1738579850283,-1500.15,0.00017808,2]
[351435225,1738579850293,-737.4,0.00017808,2]
[351435226,1738579850304,-350.57,0.00017808,2]
[351435227,1738579850314,-500.0,0.00017808,2]
[351435228,1738579850324,-844.0,0.00017808,2]
[351435229,1738579850333,-537.1,0.00017808,2]
[351435230,1738579850343,-938.51,0.00017808,2]
[351435231,1738579850354,-6839.03,0.00017808,2]
[351435232,1738579850363,-2305.3,0.00017808,2]
[351435233,1738579850373,-500.0,0.00017808,2]
[351435234,1738579850383,-155.96923721,0.00017845,2]
[351435235,1738579850393,-155.96923717,0.00017851,2]
[351435236,1738579850403,-155.96923717,0.00017857,2]
[351435237,1738579850413,-155.96923717,0.00017863,2]
[351435238,1738579850422,-155.96923717,0.00017869,2]
[351435239,1738579850432,-155.96923717,0.00017876,2]
[351435240,1738579850442,-155.96923717,0.00017882,2]
[351435241,1738579850451,-155.96923717,0.00017888,2]
[351435242,1738579850460,-155.96923717,0.00017894,2]
[351435243,1738579850470,-155.96923717,0.000179,2]
[351435244,1738579850480,-1200.0,0.00017942,2]
[351435245,1738579850490,-2261.5,0.00017945,2]
[351435246,1738579850499,-500.0,0.00017945,2]
[351435247,1738579850509,-339.9,0.00017945,2]
[351435248,1738579850519,-518.07,0.00017945,2]
[351435249,1738579850528,-786.64,0.00017945,2]
[351435250,1738579850539,-2218.04,0.00017945,2]
[351435251,1738579850549,-500.0,0.00017945,2]
[351435252,1738579850560,-572.09,0.00017945,2]
[351435253,1738579850569,-500.0,0.00017945,2]
[351435254,1738579850579,-500.0,0.00017945,2]
[351435255,1738579850589,-1500.15,0.00017945,2]
[351435256,1738579850598,-737.4,0.00017945,2]
[351435257,1738579850610,-500.0,0.00017945,2]
[351435258,1738579850620,-844.0,0.00017945,2]
[351435259,1738579850629,-537.1,0.00017945,2]
[351435260,1738579850639,-938.51,0.00017945,2]
[351435261,1738579850649,-6839.03,0.00017945,2]
[351435262,1738579850659,-2305.3,0.00017945,2]
[351435263,1738579850668,-247.7784974,0.00017945,2]
[351435264,1738579850678,-160.0,0.00017959,2]
[351435265,1738579850687,-1596479.75641799,0.0001796,7]
[351435266,1738579850697,-151.0,0.0001796,2]
[351435267,1738579850706,-151.0,0.0001796,2]
[351435268,1738579850716,-151.0,0.0001796,2]
[351435269,1738579850726,-160.0,0.00017965,2]
[351435270,1738579850735,-5000.0,0.00017966,2]
[351435271,1738579850746,-5000.0,0.00017966,2]
[351435272,1738579850758,-5000.0,0.00017966,2]
[351435273,1738579850769,-5000.0,0.00017966,2]
[351435274,1738579850779,-5000.0,0.00017966,2]
[351435275,1738579850788,-500.0,0.00017973,2]
[351435276,1738579850798,-500.0,0.00017973,2]
[351435277,1738579850807,-500.0,0.00017973,2]
[351435278,1738579850816,-500.0,0.00017973,2]
[351435279,1738579850826,-500.0,0.00017973,2]
[351435280,1738579850836,-500.0,0.00017973,2]
[351435281,1738579850846,-500.0,0.00017973,2]
[351435282,1738579850858,-500.0,0.00017973,2]
[351435283,1738579850867,-500.0,0.00017973,2]
[351435284,1738579850877,-1227.4185468,0.00018,2]
[351435285,1738579850887,-3771087.19704568,0.00018,15]
[351435286,1738579850978,-300.0,0.00018,15]
[351435287,1738579851009,-358.7255463,0.00016426,2]
[351435288,1738579851451,-307.1335,0.00016426,2]
[351435289,1738579851477,-552.64967338,0.00016426,2]
[351435290,1738579851590,-796.71911645,0.00016426,2]
[351435291,1738579851599,-247.74396652,0.00016426,2]
[351435292,1738579851614,-312.2633,0.00016426,2]
[351435293,1738579851625,-1397.19346005,0.00016426,2]
[351435294,1738579851742,-58.02710956,0.00016426,2]
[351435295,1738579851751,-1910.80904404,0.00016426,2]
[351435321,1738580426043,184.799989,0.00013699,2]
[351435323,1738580541505,400.0,0.00013973,2]
[351435386,1738580758106,-371.382604,0.00015114,2]
[351435387,1738580758128,-763.84326693,0.00015246,2]
[351435396,1738580844098,-134.46875633,0.00015246,2]
[351435397,1738580844120,-3004.1705654,0.000154,2]
[351435398,1738580844140,-2050.0,0.00015559,2]
[351435399,1738580844162,-300.0,0.00015559,2]
[351435400,1738580844186,-11427.9109995,0.0001556,2]
[351435401,1738580844207,-312.49071852,0.000157,2]
[351435402,1738580844227,-2091.05822619,0.00016,2]
[351435522,1738581037803,-2888.94177381,0.00016,2]
[351435523,1738581037813,-150.0,0.000164,2]
[351435525,1738581037823,-300.0,0.00016428,2]
[351435528,1738581037833,-817.21822619,0.00016428,2]
[351435550,1738581038054,-675.09456047,0.00016428,2]
[351435552,1738581038064,-324.90543953,0.00016428,2]
[351435668,1738581039858,-1167.40734713,0.00016428,2]
[351435670,1738581039868,-1492.31278666,0.00016428,2]
[351435672,1738581039878,-1492.31278666,0.00016428,2]
[351435674,1738581039887,-1492.31278666,0.00016428,2]
[351435675,1738581039896,-1492.31278666,0.00016428,2]
[351435677,1738581039905,-1492.31278666,0.00016428,2]
[351435678,1738581039916,-1492.31278666,0.00016428,2]
[351435679,1738581039926,-1492.31278666,0.00016428,2]
[351435680,1738581039936,-247.7875988,0.00016428,2]
[351435681,1738581039945,-1492.31278666,0.00016428,2]
[351435682,1738581039955,-1492.31278666,0.00016428,2]
[351435683,1738581039965,-1492.31278666,0.00016428,2]
[351435684,1738581039974,-1492.31278666,0.00016428,2]
[351435685,1738581039984,-1299.36440081,0.00016428,2]
[351435686,1738581040113,788.0,0.00022,30]
[351435745,1738581043007,-192.94838585,0.00016428,2]
[351435746,1738581043017,-409.59912665,0.00016428,2]
[351435747,1738581043029,-1082.71366001,0.00016428,2]
[351435748,1738581043039,-1492.31278666,0.00016428,2]
[351435749,1738581043049,-1492.31278666,0.00016428,2]
[351435750,1738581043058,-1028.16076667,0.00016428,2]
[351435785,1738581045932,-464.15201999,0.00016428,2]
[351435786,1738581045943,-945.67745926,0.00016428,2]
[351435787,1738581045989,-546.6353274,0.00016428,2]
[351435788,1738581045999,-1492.31278666,0.00016428,2]
[351435789,1738581046009,-1492.31278666,0.00016428,2]
[351435790,1738581046020,-1492.31278666,0.00016428,2]
[351435791,1738581046029,-69.28421307,0.00016428,2]
[351435792,1738581046041,-1212.0032,0.00016428,2]
[351436348,1738581365176,184.767536,0.00013699,2]
[351436349,1738581540942,400.0,0.00013973,2]
[351436354,1738581722463,345.33,0.00010959,2]
[351436355,1738581831476,1000.0,0.00016,16]
[351436356,1738581836064,999.67,0.00022,30]
[351436357,1738581886994,263.09,0.00010959,2]
[351436358,1738581897827,17.13635019,0.00010959,2]
[351436359,1738581897856,202.10364981,0.00010959,2]
[351436361,1738581908215,182.7,0.00010959,2]
[351436369,1738581918685,152.25,0.00010959,2]
[351436370,1738581929144,761.28,0.00010959,2]
[351436372,1738581946543,830.13434648,0.00015011,2]
[351436373,1738581955130,-219.77086407,0.00015162,2]
[351436374,1738581955154,-727.1847338,0.00015315,2]
[351436375,1738581955175,-775.43588028,0.0001547,2]
[351436377,1738582021486,181.7,0.00010959,2]
[351436379,1738582031965,151.42,0.00010959,2]
[351436380,1738582042452,757.13,0.00010959,2]
[351436381,1738582051141,-1561.43545582,0.0001547,2]
[351436382,1738582051165,-319.454726,0.00015572,2]
[351436383,1738582051189,-300.0,0.00016056,2]
[351436384,1738582051212,-6644.02833524,0.00016057,2]
[351436395,1738582172104,-8791.39081746,0.00015964,2]
[351436396,1738582220088,184.767536,0.00013699,2]
[351436414,1738582232240,-711.44376742,0.00016,2]
[351436415,1738582232250,-356.58,0.000164,2]
[351436416,1738582232259,-300.0,0.00016437,2]
[351436417,1738582232269,-50.85394765,0.00016438,2]
[351436418,1738582232295,-449.14605235,0.00016438,2]
[351436419,1738582232304,-500.0,0.00016438,2]
[351436420,1738582232314,-506.54046786,0.00016438,2]
[351436421,1738582232323,-503.18120171,0.00016438,2]
[351436422,1738582232332,-500.0,0.00016438,2]
[351436423,1738582232342,-502.31936387,0.00016438,2]
[351436424,1738582232352,-1507.67,0.00016438,2]
[351436425,1738582232361,-500.0,0.00016438,2]
[351436426,1738582232372,-512.91866977,0.00016438,2]
[351436427,1738582232382,-2030.45,0.00016438,2]
[351436428,1738582232391,-500.0,0.00016438,2]
[351436429,1738582232402,-500.0,0.00016438,2]
[351436430,1738582232411,-500.0,0.00016438,2]
[351436431,1738582232420,-500.0,0.00016438,2]
[351436432,1738582232430,-500.0,0.00016438,2]
[351436433,1738582232439,-566.1,0.00016438,2]
[351436434,1738582232449,-609.82,0.00016438,2]
[351436435,1738582232458,-642.69,0.00016438,2]
[351436436,1738582232468,-500.0,0.00016438,2]
[351436437,1738582232477,-500.0,0.00016438,2]
[351436438,1738582232487,-488.10882255,0.00016438,2]
[351436439,1738582232497,-500.0,0.00016438,2]
[351436440,1738582232507,-500.0,0.00016438,2]
[351436441,1738582232516,-500.0,0.00016438,2]
[351436442,1738582232525,-500.0,0.00016438,2]
[351436443,1738582232536,-500.0,0.00016438,2]
[351436444,1738582232545,-500.0,0.00016438,2]
[351436445,1738582232554,-1775.13,0.00016438,2]
[351436446,1738582232564,-564.73,0.00016438,2]
[351436447,1738582232574,-500.0,0.00016438,2]
[351436448,1738582232583,-1138.62,0.00016438,2]
[351436449,1738582232593,-4904.06,0.00016438,2]
[351436450,1738582232603,-500.0,0.00016438,2]
[351436451,1738582232612,-106.61254906,0.00016438,2]
[351436497,1738582238165,-395.53745094,0.00016438,2]
[351436499,1738582238176,-500.0,0.00016438,2]
[351436501,1738582238186,-285.18362091,0.00016438,2]
[351436503,1738582238199,-403.34637909,0.00016438,2]
[351436505,1738582238210,-500.0,0.00016438,2]
[351436507,1738582238220,-500.0,0.00016438,2]
[351436509,1738582238231,-500.0,0.00016438,2]
[351436512,1738582238242,-562.67,0.00016438,2]
[351436514,1738582238252,-500.0,0.00016438,2]
[351436515,1738582238262,-500.0,0.00016438,2]
[351436517,1738582238272,-245.62351999,0.00016438,2]
[351436519,1738582238282,-386.16743758,0.000165,2]
[351436521,1738582238292,-6298.20554734,0.00016566,5]
[351436523,1738582238305,-611.556,0.00016566,5]
[351436526,1738582238318,-6597.74422124,0.00016566,5]
[351436527,1738582238328,-1462.75387604,0.00016566,5]
[351436530,1738582238339,-105.12089152,0.00016566,5]
[351436532,1738582238348,-364.11022699,0.00016566,2]
[351436534,1738582238359,-559.32150092,0.00016566,2]
[351436536,1738582238374,-591.86959854,0.00016566,2]
[351436546,1738582238383,-908.13040146,0.00016566,2]
[351436567,1738582240722,-243.060698,0.00016566,2]
[351436568,1738582240731,-1151.19109946,0.00016566,2]
[351436569,1738582240740,-1151.19109946,0.00016566,2]
[351436570,1738582240749,-1151.19109946,0.00016566,2]
[351436571,1738582240759,-1151.19109946,0.00016566,2]
[351436572,1738582240769,-1151.19109946,0.00016566,2]
[351436573,1738582240779,-1151.19109946,0.00016566,2]
[351436574,1738582240788,-1151.19109946,0.00016566,2]
[351436575,1738582240797,-1151.19109946,0.00016566,2]
[351436576,1738582240807,-1151.19109946,0.00016566,2]
[351436577,1738582240816,-1151.19109946,0.00016566,2]
[351436578,1738582240828,-1151.19109946,0.00016566,2]
[351436579,1738582240838,-1151.19109946,0.00016566,2]
[351436580,1738582240848,-1151.19109946,0.00016566,2]
[351436581,1738582240858,-1151.19109946,0.00016566,2]
[351436582,1738582240867,-1151.19109946,0.00016566,2]
[351436583,1738582240878,-1151.19109946,0.00016566,2]
[351436584,1738582240887,-1151.19109946,0.00016566,2]
[351436585,1738582240896,-1151.19109946,0.00016566,2]
[351436586,1738582240905,-1151.19109946,0.00016566,2]
[351436587,1738582240914,-1151.19109946,0.00016566,2]
[351436588,1738582240924,-1151.19109946,0.00016566,2]
[351436589,1738582240933,-1151.19109946,0.00016566,2]
[351436590,1738582240942,-1151.19109946,0.00016566,2]
[351436591,1738582240952,-1151.19109946,0.00016566,2]
[351436592,1738582240961,-1151.19109946,0.00016566,2]
[351436593,1738582240971,-1151.19109946,0.00016566,2]
[351436594,1738582240980,-1151.19109946,0.00016566,2]
[351436595,1738582240990,-1151.19109946,0.00016566,2]
[351436596,1738582240999,-1151.19109946,0.00016566,2]
[351436597,1738582241009,-1151.19109946,0.00016566,2]
[351436598,1738582241019,-1151.19109946,0.00016566,2]
[351436599,1738582241028,-1151.19109946,0.00016566,2]
[351436600,1738582241037,-1151.19109946,0.00016566,2]
[351436601,1738582241046,-1151.19109946,0.00016566,2]
[351436602,1738582241056,-1151.19109946,0.00016566,2]
[351436603,1738582241065,-1151.19109946,0.00016566,2]
[351436604,1738582241075,-1151.19109946,0.00016566,2]
[351436605,1738582241084,-1151.19109946,0.00016566,2]
[351436606,1738582241093,-1151.19109946,0.00016566,2]
[351436607,1738582241102,-1151.19109946,0.00016566,2]
[351436608,1738582241111,-1151.19109946,0.00016566,2]
[351436609,1738582241123,-1151.19109946,0.00016566,2]
[351436610,1738582241133,-1151.19109946,0.00016566,2]
[351436611,1738582241142,-1151.19109946,0.00016566,2]
[351436612,1738582241152,-1151.19109946,0.00016566,2]
[351436613,1738582241161,-1151.19109946,0.00016566,2]
[351436614,1738582241171,-1151.19109946,0.00016566,2]
[351436615,1738582241181,-1151.19109946,0.00016566,2]
[351436616,1738582241190,-1151.19109946,0.00016566,2]
[351436617,1738582241200,-1151.19109946,0.00016566,2]
[351436618,1738582241210,-1151.19109946,0.00016566,2]
[351436619,1738582241220,-1151.19109946,0.00016566,2]
[351436620,1738582241230,-1151.19109946,0.00016566,2]
[351436621,1738582241239,-1151.19109946,0.00016566,2]
[351436622,1738582241249,-1151.19109946,0.00016566,2]
[351436623,1738582241259,-1151.19109946,0.00016566,2]
[351436624,1738582241270,-1151.19109946,0.00016566,2]
[351436625,1738582241280,-1151.19109946,0.00016566,2]
[351436626,1738582241290,-1151.19109946,0.00016566,2]
[351436627,1738582241299,-1151.19109946,0.00016566,2]
[351436628,1738582241309,-1151.19109946,0.00016566,2]
[351436629,1738582241319,-1151.19109946,0.00016566,2]
[351436630,1738582241330,-1151.19109946,0.00016566,2]
[351436631,1738582241339,-1151.19109946,0.00016566,2]
[351436632,1738582241348,-1151.19109946,0.00016566,2]
[351436633,1738582241357,-1126.16520599,0.00016566,2]
[351436634,1738582241366,-1126.16520599,0.00016566,2]
[351436635,1738582241378,-1126.16520599,0.00016566,2]
[351436636,1738582241388,-1126.16520599,0.00016566,2]
[351436637,1738582241397,-1126.16520599,0.00016566,2]
[351436638,1738582241406,-1126.16520599,0.00016566,2]
[351436639,1738582241416,-1126.16520599,0.00016566,2]
[351436640,1738582241425,-1126.16520599,0.00016566,2]
[351436641,1738582241435,-1126.16520599,0.00016566,2]
[351436642,1738582241445,-1126.16520599,0.00016566,2]
[351436643,1738582241454,-1126.16520599,0.00016566,2]
[351436644,1738582241464,-1126.16520599,0.00016566,2]
[351436645,1738582241473,-1126.16520599,0.00016566,2]
[351436646,1738582241482,-1126.16520599,0.00016566,2]
[351436647,1738582241492,-1126.16520599,0.00016566,2]
[351436648,1738582241501,-1126.16520599,0.00016566,2]
[351436649,1738582241510,-1126.16520599,0.00016566,2]
[351436650,1738582241520,-1126.16520599,0.00016566,2]
[351436651,1738582241530,-1126.16520599,0.00016566,2]
[351436652,1738582241539,-184.74315254,0.00016566,2]
[351436690,1738582243073,-500.0,0.00016438,2]
[351436691,1738582243083,-941.42205345,0.00016566,2]
[351436692,1738582243092,-1126.16520599,0.00016566,2]
[351436693,1738582243102,-1126.16520599,0.00016566,2]
[351436694,1738582243111,-1126.16520599,0.00016566,2]
[351436695,1738582243121,-500.0,0.00016569,2]
[351436696,1738582243131,-500.0,0.00016569,2]
[351436697,1738582243140,-500.0,0.00016569,2]
[351436698,1738582243150,-500.0,0.00016569,2]
[351436699,1738582243159,-252.76754405,0.00016569,2]
[351436700,1738582243168,-500.0,0.00016575,2]
[351436701,1738582243177,-1507.67,0.00016575,2]
[351436702,1738582243188,-2030.45,0.00016575,2]
[351436703,1738582243197,-500.0,0.00016575,2]
[351436704,1738582243207,-566.1,0.00016575,2]
[351436705,1738582243215,-500.0,0.00016575,2]
[351436706,1738582243224,-500.0,0.00016575,2]
[351436707,1738582243233,-500.0,0.00016575,2]
[351436708,1738582243242,-1775.13,0.00016575,2]
[351436709,1738582243251,-500.0,0.00016575,2]
[351436710,1738582243260,-1138.62,0.00016575,2]
[351436711,1738582243269,-4904.06,0.00016575,2]
[351436712,1738582243280,-500.0,0.00016575,2]
[351436713,1738582243289,-502.15,0.00016575,2]
[351436714,1738582243298,-500.0,0.00016575,2]
[351436715,1738582243308,-688.53,0.00016575,2]
[351436716,1738582243317,-500.0,0.00016575,2]
[351436717,1738582243326,-500.0,0.00016575,2]
[351436719,1738582243335,-500.0,0.00016575,2]
[351436720,1738582243344,-562.67,0.00016575,2]
[351436721,1738582243353,-500.0,0.00016575,2]
[351436722,1738582243362,-242.06804144,0.00016575,2]
[351436723,1738582243371,-2437.60904768,0.00016585,2]
[351436724,1738582243385,-6427.18499237,0.00016585,2]
[351436725,1738582243395,-170.41792787,0.00016671,2]
[351436726,1738582243404,-529.56420561,0.00016712,2]
[351436727,1738582243413,-1507.67,0.00016712,2]
[351436728,1738582243423,-1714.16287415,0.00016712,2]
[351436729,1738582243440,-499.9967325,0.00016575,2]
[351437365,1738582366759,400.0,0.00013973,2]
[351437366,1738582503271,205.28458561,0.00022,30]
[351437371,1738582807168,66071.89359982,0.00022,30]
[351437372,1738582838294,184.246737,0.00016,10]
[351437373,1738583076953,184.735085,0.00013699,2]
[351437374,1738583106896,591.05508498,0.00015011,2]
[351437375,1738583155128,-1074.58464618,0.00015227,2]
[351437376,1738583173204,642.675067,0.00015011,2]
[351437377,1738583234130,-1414.30381929,0.00015227,2]
[351437378,1738583238594,400.0,0.00013973,2]
[351437379,1738583240083,-6352.18496983,0.00015227,2]
[351437380,1738583240109,-756.6797224,0.00015282,2]
[351437381,1738583240138,-324.9161854,0.00015501,2]
[351437382,1738583240163,-272.61854681,0.00015504,2]
[351437383,1738583251090,-4.37440719,0.00015504,2]
[351437384,1738583251115,-271.6796001,0.00016437,2]
[351437439,1738583432465,-692.03744027,0.00016175,2]
[351437440,1738583432476,-280.62380415,0.00016338,2]
[351437441,1738583432486,-300.0,0.00016437,2]
[351437443,1738583432495,-332.93145897,0.00016438,2]
[351437444,1738583432505,-500.0,0.00016438,2]
[351437446,1738583432515,-500.0,0.00016438,2]
[351437447,1738583432525,-500.0,0.00016438,2]
[351437449,1738583432534,-500.0,0.00016438,2]
[351437450,1738583432545,-500.0,0.00016438,2]
[351437451,1738583432555,-500.0,0.00016438,2]
[351437452,1738583432565,-500.0,0.00016438,2]
[351437453,1738583432576,-500.0,0.00016438,2]
[351437454,1738583432586,-500.0,0.00016438,2]
[351437455,1738583432596,-500.0,0.00016438,2]
[351437456,1738583432606,-500.0,0.00016438,2]
[351437457,1738583432616,-496.66896969,0.00016438,2]
[351437458,1738583432626,-500.0,0.00016438,2]
[351437459,1738583432639,-500.0,0.00016438,2]
[351437461,1738583432649,-500.0,0.00016438,2]
[351437463,1738583432659,-1319.21,0.00016438,2]
[351437465,1738583432669,-500.0,0.00016438,2]
[351437467,1738583432679,-565.64608276,0.00016438,2]
[351437469,1738583432688,-500.0,0.00016438,2]
[351437471,1738583432697,-158.22812622,0.00016438,2]
[351437473,1738583432707,-500.0,0.00016438,2]
[351437475,1738583432718,-504.12324223,0.00016438,2]
[351437477,1738583432727,-500.0,0.00016438,2]
[351437479,1738583432737,-500.0,0.00016438,2]
[351437481,1738583432747,-500.0,0.00016438,2]
[351437483,1738583432756,-500.0,0.00016438,2]
[351437485,1738583432766,-500.0,0.00016438,2]
[351437487,1738583432775,-1830.22,0.00016438,2]
[351437489,1738583432785,-500.0,0.00016438,2]
[351437491,1738583432795,-500.0,0.00016438,2]
[351437493,1738583432804,-500.0,0.00016438,2]
[351437495,1738583432813,-500.0,0.00016438,2]
[351437497,1738583432823,-500.0,0.00016438,2]
[351437499,1738583432833,-500.0,0.00016438,2]
[351437501,1738583432844,-500.0,0.00016438,2]
[351437503,1738583432854,-500.0,0.00016438,2]
[351437505,1738583432864,-500.0,0.00016438,2]
[351437507,1738583432874,-500.0,0.00016438,2]
[351437508,1738583432886,-500.0,0.00016438,2]
[351437509,1738583432896,-500.0,0.00016438,2]
[351437510,1738583432906,-511.66040933,0.00016438,2]
[351437512,1738583432916,-500.0,0.00016438,2]
[351437515,1738583432927,-539.76,0.00016438,2]
[351437516,1738583432937,-500.0,0.00016438,2]
[351437518,1738583432947,-500.0,0.00016438,2]
[351437520,1738583432957,-500.0,0.00016438,2]
[351437523,1738583432967,-500.0,0.00016438,2]
[351437525,1738583432977,-500.0,0.00016438,2]
[351437527,1738583432988,-414.76297833,0.00016438,2]
[351437529,1738583432999,-338.7353428,0.00016438,2]
[351437531,1738583433010,-500.0,0.00016438,2]
[351437533,1738583433021,-501.31920245,0.00016438,2]
[351437535,1738583433032,-500.0,0.00016438,2]
[351437537,1738583433044,-1064.57,0.00016438,2]
[351437539,1738583433055,-500.0,0.00016438,2]
[351437541,1738583433066,-500.0,0.00016438,2]
[351437543,1738583433078,-500.0,0.00016438,2]
[351437545,1738583433089,-500.0,0.00016438,2]
[351437547,1738583433099,-4523.64,0.00016438,2]
[351437549,1738583433110,-500.0,0.00016438,2]
[351437551,1738583433121,-500.0,0.00016438,2]
[351437553,1738583433132,-537.59,0.00016438,2]
[351437556,1738583433147,-500.0,0.00016438,2]
[351437558,1738583433158,-500.0,0.00016438,2]
[351437560,1738583433170,-500.0,0.00016438,2]
[351437562,1738583433184,-500.0,0.00016438,2]
[351437564,1738583433196,-500.0,0.00016438,2]
[351437566,1738583433208,-1648.04,0.00016438,2]
[351437568,1738583433219,-500.0,0.00016438,2]
[351437570,1738583433231,-500.0,0.00016438,2]
[351437572,1738583433242,-500.0,0.00016438,2]
[351437574,1738583433254,-568.20176469,0.00016438,2]
[351437576,1738583433266,-500.0,0.00016438,2]
[351437591,1738583433425,-500.0,0.00016438,2]
[351437592,1738583433438,-500.0,0.00016438,2]
[351437593,1738583433448,-500.0,0.00016438,2]